bitfinex/quotes_SOLUSD_20240613
["timestamp","ask_amount","ask_price","bid_price","bid_amount"]
[1718295721874,0.17,147.43,147.36,0.05578752]
[1718295722028,2.5104,147.39,147.36,0.05578752]
[1718295722354,5.0205,147.4,147.36,0.05578752]
[1718295722537,2.5104,147.39,147.36,0.05578752]
[1718295722929,2.5102,147.4,147.36,0.05578752]
[1718295723237,20.34,147.41,147.36,0.05578752]
[1718295723238,0.17,147.39,147.36,0.05578752]
[1718295723436,48.0203,147.4,147.36,0.05578752]
[1718295723639,2.5103,147.39,147.36,0.05578752]
[1718295724224,0.17,147.39,147.36,0.05578752]
[1718295724456,2.5106,147.37,147.36,0.05578752]
[1718295724636,0.17,147.39,147.36,0.05578752]
[1718295724834,2.6804,147.39,147.36,0.05578752]
[1718295725133,0.17,147.37,147.36,0.05578752]
[1718295725731,2.6806,147.37,147.36,0.05578752]
[1718295725944,3.1906,147.37,147.36,0.05578752]
[1718295726354,20.0,147.39,147.36,0.05578752]
[1718295726552,15.9881,147.41,147.36,0.05578752]
[1718295726750,100.0,147.46,147.39,2.5102]
[1718295726751,18.6641,147.45,147.39,2.5102]
[1718295727063,24.6918,147.49,147.43,2.5096]
[1718295727367,393.3083,147.51,147.45,2.5092]
[1718295727652,6.0284,147.54,147.44,35.0565]
[1718295727867,6.0284,147.54,147.43,16.1776]
[1718295727868,26.3684,147.54,147.43,16.1776]
[1718295728029,26.3684,147.54,147.39,16.2612]
[1718295728030,30.3734,147.51,147.39,16.2612]
[1718295728236,25.45,147.52,147.4,25.0201]
[1718295728560,5.0168,147.51,147.4,25.0201]
[1718295728769,2.5086,147.49,147.43,2.5095]
[1718295729566,53.3146,147.52,147.46,2.5091]
[1718295729567,2.5082,147.52,147.46,2.5091]
[1718295729763,6.0284,147.54,147.47,2.5089]
[1718295729945,100.0,147.56,147.45,36.6832]
[1718295729946,2.5075,147.56,147.45,36.6832]
[1718295730147,2.5075,147.56,147.5,2.5084]
[1718295730351,31.6765,147.58,147.51,2.5082]
[1718295730352,2.5073,147.57,147.51,2.5082]
[1718295730678,2.5073,147.57,147.5,2.5084]
[1718295730839,2.5073,147.57,147.51,2.5083]
[1718295731253,6.2265,147.58,147.5,2.5084]
[1718295731254,2.5074,147.56,147.5,2.5084]
[1718295731460,2.5074,147.56,147.48,20.0]
[1718295731461,8.7336,147.58,147.51,2.5082]
[1718295731956,2.5078,147.54,147.48,20.0]
[1718295732179,2.508,147.53,147.47,22.5089]
[1718295732339,2.508,147.53,147.47,20.0]
[1718295732541,2.5086,147.49,147.43,2.5095]
[1718295732737,5.0161,147.53,147.42,15.294]
[1718295732738,2.509,147.47,147.42,15.294]
[1718295733040,2.5087,147.49,147.42,2.5097]
[1718295733348,0.17,147.49,147.39,5.0206]
[1718295733546,26.6184,147.5,147.45,2.5092]
[1718295733757,6.6184,147.5,147.45,2.5092]
[1718295733959,6.5759,147.54,147.44,10.0379]
[1718295734259,2.5079,147.53,147.44,22.585]
[1718295734460,9.0837,147.54,147.48,2.5087]
[1718295734664,285.7113,147.57,147.46,10.0365]
[1718295734665,268.1601,147.57,147.46,10.0365]
[1718295734974,22.5075,147.56,147.47,5.0178]
[1718295735270,6.3239,147.59,147.48,5.0174]
[1718295735453,2.5072,147.58,147.49,33.12374395]
[1718295735636,2.5073,147.57,147.51,2.5082]
[1718295735842,2.5074,147.56,147.51,2.5082]
[1718295736047,2.5073,147.57,147.51,2.5082]
[1718295736253,2.5074,147.56,147.5,2.5083]
[1718295736943,20.34,147.58,147.49,20.0]
[1718295737141,2.5081,147.53,147.47,22.5088]
[1718295737568,0.51,147.54,147.47,2.5089]
[1718295737768,2.5081,147.52,147.46,17.696]
[1718295737966,2.5081,147.52,147.47,2.5089]
[1718295738147,2.5081,147.52,147.46,17.696]
[1718295738355,2.508,147.53,147.47,2.5089]
[1718295738763,0.17,147.52,147.47,2.5089]
[1718295739074,3.1881,147.52,147.46,17.696]
[1718295739276,3.1881,147.52,147.46,2.509]
[1718295739451,2.5083,147.51,147.45,2.5092]
[1718295739653,3.1882,147.52,147.46,2.5091]
[1718295739969,0.17,147.54,147.43,1.0]
[1718295740176,0.17,147.54,147.46,12.5455]
[1718295740352,0.17,147.54,147.49,2.5084]
[1718295740852,20.0,147.54,147.49,2.5086]
[1718295741058,20.0,147.54,147.5,2.5084]
[1718295741565,10.0285,147.58,147.52,2.508]
[1718295741566,2.5071,147.58,147.52,2.508]
[1718295742065,2.5073,147.57,147.51,2.5082]
[1718295742241,2.5074,147.56,147.5,22.5084]
[1718295742446,12.5367,147.57,147.48,2.5087]
[1718295742676,2.508,147.53,147.48,20.0]
[1718295742847,0.34,147.56,147.48,20.0]
[1718295743045,20.0,147.56,147.48,20.0]
[1718295743253,22.6772,147.58,147.52,2.508]
[1718295743483,20.0,147.58,147.53,2.5079]
[1718295743970,2.5071,147.58,147.53,2.5079]
[1718295744381,2.5071,147.58,147.52,2.508]
[1718295744675,2.5073,147.57,147.52,2.508]
[1718295745783,2.5071,147.58,147.52,2.508]
[1718295745961,2.5071,147.58,147.53,2.5079]
[1718295746860,0.17,147.58,147.5,35.0084]
[1718295747071,2.5076,147.55,147.5,37.5168]
[1718295747486,2.5075,147.56,147.5,37.5168]
[1718295747688,2.6773,147.57,147.51,2.5082]
[1718295747885,2.5074,147.56,147.5,37.5168]
[1718295748052,2.5079,147.54,147.48,2.5087]
[1718295748252,0.34,147.55,147.48,20.0]
[1718295748457,0.34,147.55,147.46,15.4457]
[1718295748458,2.5083,147.51,147.46,15.4457]
[1718295748767,2.5082,147.52,147.47,2.5089]
[1718295748981,2.508,147.53,147.47,2.5089]
[1718295749274,25.3556,147.54,147.46,15.4457]
[1718295749486,2.5083,147.51,147.46,15.4457]
[1718295749985,2.5081,147.52,147.46,17.9548]
[1718295750483,22.8478,147.54,147.48,2.5087]
[1718295750785,0.34,147.54,147.46,15.4457]
[1718295750983,2.5081,147.52,147.46,17.9546]
[1718295751358,2.5088,147.48,147.43,1.0]
[1718295751556,2.5089,147.48,147.43,1.0]
[1718295751869,2.509,147.47,147.43,1.0]
[1718295752056,2.5092,147.46,147.43,1.0]
[1718295752883,0.34,147.47,147.43,1.0]
[1718295753061,2.5092,147.46,147.43,1.0]
[1718295753984,0.34,147.47,147.43,1.0]
[1718295754352,20.0,147.48,147.44,2.5093]
[1718295754567,0.17,147.49,147.43,1.0]
[1718295754786,2.509,147.47,147.43,1.0]
[1718295755079,2.5092,147.46,147.43,1.0]
[1718295755276,0.17,147.47,147.43,1.0]
[1718295755477,2.5092,147.46,147.43,1.0]
[1718295755671,0.34,147.47,147.43,1.0]
[1718295755873,2.849,147.47,147.43,1.0]
[1718295756870,2.5091,147.46,147.43,1.0]
[1718295757076,0.17,147.47,147.43,1.0]
[1718295757277,2.6788,147.48,147.43,1.0]
[1718295758082,22.6788,147.48,147.43,1.0]
[1718295758383,2.509,147.47,147.43,1.0]
[1718295758571,2.5091,147.46,147.43,1.0]
[1718295759091,2.679,147.47,147.43,1.0]
[1718295760289,0.17,147.47,147.43,1.0]
[1718295761063,2.679,147.47,147.43,1.0]
[1718295761369,2.6789,147.47,147.43,1.0]
[1718295761979,0.17,147.47,147.43,1.0]
[1718295762474,2.5094,147.44,147.43,1.0]
[1718295762990,2.5094,147.45,147.43,1.0]
[1718295763697,22.5092,147.46,147.43,1.0]
[1718295764188,20.0,147.46,147.43,1.0]
[1718295764394,2.6794,147.45,147.43,1.0]
[1718295764775,2.5094,147.44,147.43,1.0]
[1718295764978,8.0383,147.44,147.43,1.0]
[1718295765197,8.2083,147.44,147.43,1.0]
[1718295765494,73.2083,147.44,147.43,1.0]
[1718295766071,68.1894,147.44,147.43,1.0]
[1718295766496,73.2083,147.44,147.43,1.0]
[1718295766678,90.7746,147.44,147.43,1.0]
[1718295767620,0.17,147.38,147.34,0.8410199]
[1718295767785,37.9089,147.42,147.34,0.8410199]
[1718295768095,2.5108,147.37,147.34,0.8410199]
[1718295768323,0.17,147.37,147.34,0.8410199]
[1718295768481,7.703,147.35,147.34,0.8410199]
[1718295768681,60.746,147.35,147.34,0.8410199]
[1718295769098,73.213,147.35,147.34,0.8410199]
[1718295769477,97.2079,147.35,147.34,0.8410199]
[1718295770789,89.6749,147.35,147.34,0.8410199]
[1718295771180,79.6308,147.35,147.34,0.8410199]
[1718295771373,68.191,147.35,147.34,0.8410199]
[1718295772921,83.2571,147.35,147.34,0.8410199]
[1718295773219,90.7901,147.35,147.34,0.8410199]
[1718295775787,83.2571,147.35,147.34,0.8410199]
[1718295775991,27.533,147.35,147.34,0.8410199]
[1718295776209,45.1101,147.35,147.34,0.8410199]
[1718295777212,45.6201,147.35,147.34,0.8410199]
[1718295777409,90.7901,147.35,147.34,0.8410199]
[1718295778286,311.1301,147.35,147.34,1.99e-05]
[1718295778801,211.1301,147.35,147.34,1.99e-05]
[1718295780212,190.7901,147.35,147.34,1.99e-05]
[1718295780393,90.7901,147.35,147.34,1.99e-05]
[1718295780593,2.511,147.35,147.34,1.99e-05]
[1718295780803,12.5551,147.35,147.34,1.99e-05]
[1718295781120,25.1101,147.35,147.34,1.99e-05]
[1718295781326,50.6701,147.35,147.34,1.99e-05]
[1718295781918,51.0101,147.35,147.34,1.99e-05]
[1718295782124,96.3501,147.35,147.34,1.99e-05]
[1718295782523,96.3501,147.35,147.25,15.5529]
[1718295782524,17.5839,147.3,147.25,15.5529]
[1718295782702,2.5126,147.26,147.21,15.1984]
[1718295782901,5.0244,147.28,147.21,15.1984]
[1718295782902,2.5128,147.25,147.21,15.1984]
[1718295783408,10.7287,147.29,147.22,2.5131]
[1718295783409,0.68,147.29,147.22,2.5131]
[1718295783597,2.5124,147.27,147.21,17.7117]
[1718295783793,2.5123,147.28,147.22,2.5132]
[1718295784028,5.7042,147.29,147.21,15.1984]
[1718295784224,2.5126,147.26,147.21,15.1984]
[1718295784400,2.5128,147.25,147.21,15.1984]
[1718295784908,2.5132,147.22,147.21,15.1984]
[1718295785116,2.5132,147.22,147.19,7.1838199]
[1718295785318,7.5388,147.24,147.19,0.8410199]
[1718295785526,2.5135,147.2,147.19,0.8410199]
[1718295785825,2.6835,147.2,147.19,0.8410199]
[1718295786029,3.1935,147.2,147.19,0.8410199]
[1718295786195,8.2206,147.2,147.19,0.8410199]
[1718295786401,80.7613,147.2,147.19,0.8410199]
[1718295786631,23.1935,147.2,147.19,0.8410199]
[1718295787016,80.7613,147.2,147.19,0.8410199]
[1718295787218,111.1556,147.2,147.19,0.8410199]
[1718295787602,83.2749,147.2,147.19,0.8410199]
[1718295787799,20.0,147.2,147.19,0.8410199]
[1718295788100,25.56,147.25,147.19,0.8410199]
[1718295788397,32.1222,147.28,147.19,0.8410199]
[1718295788398,2.5123,147.28,147.21,2.5132]
[1718295788631,2.5122,147.28,147.21,2.5132]
[1718295788920,30.5841,147.29,147.19,0.8410199]
[1718295789128,12.5589,147.31,147.19,0.8410199]
[1718295789302,12.5602,147.29,147.19,0.8410199]
[1718295789503,2.5129,147.24,147.19,0.8410199]
[1718295789707,2.5124,147.27,147.2,2.5135]
[1718295790048,2.5124,147.27,147.19,0.8410199]
[1718295790049,253.1,147.33,147.22,0.17]
[1718295790207,2.5117,147.31,147.25,2.5126]
[1718295790525,255.6114,147.33,147.23,5.0261]
[1718295790725,255.6114,147.33,147.26,2.5124]
[1718295790915,2.5115,147.32,147.26,2.5124]
[1718295791122,253.1,147.33,147.23,2.513]
[1718295791123,2.5119,147.3,147.23,2.513]
[1718295791334,10.0479,147.3,147.21,15.7209]
[1718295791541,5.0234,147.31,147.22,2.5132]
[1718295791748,5.0234,147.31,147.21,15.7209]
[1718295791749,5.0243,147.29,147.21,15.7209]
[1718295791902,2.5127,147.25,147.21,15.7209]
[1718295792810,2.513,147.24,147.21,15.7209]
[1718295793508,5.0235,147.31,147.22,2.5131]
[1718295793824,2.5121,147.29,147.21,15.7209]
[1718295794122,2.5121,147.29,147.22,2.5131]
[1718295794303,253.1,147.33,147.25,2.5125]
[1718295794509,263.1455,147.33,147.21,15.7209]
[1718295794706,20.34,147.32,147.21,15.7209]
[1718295794907,5.0241,147.29,147.21,15.7209]
[1718295795129,2.5128,147.25,147.21,15.7209]
[1718295795317,2.5129,147.24,147.21,15.7209]
[1718295795514,45.0,147.28,147.21,15.7209]
[1718295795729,2.5135,147.21,147.19,0.8410199]
[1718295795931,5.0259,147.24,147.19,0.8410199]
[1718295796125,3.0231,147.23,147.19,0.8410199]
[1718295796438,2.5134,147.21,147.19,0.8410199]
[1718295796755,0.51,147.23,147.19,0.8410199]
[1718295797037,3.0231,147.23,147.19,0.8410199]
[1718295797420,23.0231,147.23,147.19,0.8410199]
[1718295797723,2.5132,147.22,147.19,0.8410199]
[1718295797923,2.5135,147.2,147.19,0.8410199]
[1718295798121,2.5135,147.21,147.19,0.8410199]
[1718295798538,2.5135,147.2,147.19,0.8410199]
[1718295799549,5.0266,147.22,147.19,0.8410199]
[1718295799550,20.0,147.21,147.19,0.8410199]
[1718295799840,22.5134,147.21,147.19,0.8410199]
[1718295800054,2.5135,147.21,147.19,0.8410199]
[1718295800229,2.5135,147.2,147.19,0.8410199]
[1718295800413,2.5133,147.22,147.19,0.8410199]
[1718295800614,20.68,147.23,147.19,0.8410199]
[1718295800615,2.5134,147.21,147.19,0.8410199]
[1718295800809,20.68,147.23,147.19,0.8410199]
[1718295800810,2.5133,147.22,147.19,0.8410199]
[1718295801226,5.0253,147.26,147.19,0.8410199]
[1718295801428,2.5129,147.24,147.19,0.8410199]
[1718295802140,2.5126,147.26,147.2,2.5134]
[1718295802527,2.5127,147.25,147.19,3.3546199]
[1718295802729,5.0248,147.27,147.19,0.8410199]
[1718295802927,2.513,147.23,147.19,0.8410199]
[1718295803138,2.5131,147.23,147.19,0.8410199]
[1718295803339,17.5895,147.25,147.19,0.8410199]
[1718295803650,0.17,147.27,147.19,0.8410199]
[1718295803651,2.5129,147.24,147.19,0.8410199]
[1718295804220,32.732,147.27,147.19,0.8410199]
[1718295804221,2.5131,147.23,147.19,0.8410199]
[1718295804856,25.0255,147.25,147.19,0.8410199]
[1718295805025,2.5129,147.24,147.19,0.8410199]
[1718295805356,5.1954,147.25,147.19,0.8410199]
[1718295805666,2.513,147.24,147.19,0.8410199]
[1718295805829,2.5131,147.23,147.19,0.8410199]
[1718295806146,2.5134,147.21,147.19,0.8410199]
[1718295806663,17.5892,147.25,147.19,0.8410199]
[1718295806834,2.5135,147.21,147.19,0.8410199]
[1718295808244,2.5133,147.22,147.19,0.8410199]
[1718295808757,5.0262,147.23,147.19,0.8410199]
[1718295808758,20.0,147.26,147.19,3.3547199]
[1718295809131,2.5129,147.24,147.19,0.8410199]
[1718295809652,2.5131,147.23,147.19,0.8410199]
[1718295809834,2.5133,147.22,147.19,0.8410199]
[1718295810559,20.0,147.23,147.19,0.8410199]
[1718295810763,2.5133,147.22,147.19,0.8410199]
[1718295811342,2.5134,147.21,147.19,0.8410199]
[1718295811665,2.5135,147.2,147.19,0.8410199]
[1718295812159,20.0,147.21,147.19,0.8410199]
[1718295812753,2.5135,147.2,147.19,0.8410199]
[1718295813175,22.5135,147.21,147.19,0.8410199]
[1718295813334,20.0,147.21,147.19,0.8410199]
[1718295813535,22.5135,147.21,147.19,0.8410199]
[1718295813750,2.5135,147.2,147.19,0.8410199]
[1718295814566,22.5135,147.21,147.19,0.8410199]
[1718295814874,2.5135,147.21,147.19,0.8410199]
[1718295815340,2.5135,147.2,147.19,0.8410199]
[1718295815540,2.5135,147.21,147.19,0.8410199]
[1718295815940,10.0498,147.27,147.19,3.3547199]
[1718295816175,2.5132,147.23,147.2,16.2857]
[1718295816478,2.513,147.23,147.2,16.2857]
[1718295816981,2.5131,147.23,147.2,16.2857]
[1718295817170,2.5128,147.25,147.2,16.2857]
[1718295817473,2.5128,147.25,147.2,18.7992]
[1718295817474,2.5129,147.24,147.2,18.7992]
[1718295817763,2.5129,147.24,147.2,16.2857]
[1718295817764,2.513,147.24,147.2,16.2857]
[1718295818877,2.513,147.23,147.2,16.2857]
[1718295819259,2.5129,147.24,147.2,16.2857]
[1718295819783,2.5131,147.23,147.2,16.2857]
[1718295820149,2.513,147.24,147.2,16.2857]
[1718295820553,22.5128,147.25,147.2,18.7992]
[1718295820782,2.5128,147.25,147.2,18.7992]
[1718295822002,10.0482,147.29,147.2,16.2857]
[1718295822186,2.5126,147.26,147.21,8.8869]
[1718295822352,100.0,147.28,147.2,16.2857]
[1718295822680,100.0,147.32,147.2,16.2857]
[1718295822681,2.5131,147.23,147.2,16.2857]
[1718295822995,2.5129,147.24,147.2,16.2857]
[1718295823487,2.5131,147.23,147.2,16.2857]
[1718295823666,5.0253,147.26,147.2,16.2857]
[1718295823667,0.17,147.26,147.2,16.2857]
[1718295823864,2.5134,147.21,147.2,16.2857]
[1718295824585,2.5133,147.22,147.2,16.2857]
[1718295824793,2.5132,147.22,147.2,16.2857]
[1718295825099,2.5134,147.21,147.19,0.8410199]
[1718295825398,2.5133,147.22,147.19,0.8410199]
[1718295826389,2.5132,147.22,147.19,0.8410199]
[1718295826756,2.5133,147.22,147.19,0.8410199]
[1718295826957,2.5132,147.22,147.19,0.8410199]
[1718295827190,22.5131,147.23,147.19,0.8410199]
[1718295827356,20.0,147.24,147.19,3.3546199]
[1718295827551,20.0,147.24,147.19,0.8410199]
[1718295827552,7.5387,147.24,147.19,0.8410199]
[1718295827774,2.5133,147.22,147.19,0.8410199]
[1718295828180,2.5135,147.21,147.19,0.8410199]
[1718295828591,5.0261,147.23,147.19,0.8410199]
[1718295828592,2.5135,147.2,147.19,0.8410199]
[1718295828959,7.5406,147.2,147.19,0.8410199]
[1718295829186,15.2513,147.2,147.19,0.8410199]
[1718295829365,35.2513,147.2,147.19,0.8410199]
[1718295829558,27.7106,147.2,147.19,0.8410199]
[1718295829753,22.6835,147.2,147.19,0.8410199]
[1718295830056,55.5608,147.26,147.19,0.8410199]
[1718295830272,2.5133,147.22,147.19,0.8410199]
[1718295830479,2.5134,147.21,147.19,0.8410199]
[1718295830655,2.5135,147.2,147.19,0.8410199]
[1718295831057,2.5135,147.21,147.19,0.8410199]
[1718295831285,2.5135,147.2,147.19,0.8410199]
[1718295835593,45.61,147.22,147.19,0.8410199]
[1718295835907,20.0,147.22,147.19,0.8410199]
[1718295836076,2.5132,147.22,147.19,0.8410199]
[1718295836277,2.5131,147.23,147.19,0.8410199]
[1718295836588,5.0261,147.23,147.19,0.8410199]
[1718295836786,2.5134,147.21,147.19,0.8410199]
[1718295838202,20.0,147.22,147.19,0.8410199]
[1718295838508,2.5135,147.21,147.19,0.8410199]
[1718295838880,22.5132,147.22,147.19,0.8410199]
[1718295839195,2.5132,147.22,147.19,0.8410199]
[1718295839905,2.5133,147.22,147.19,0.8410199]
[1718295840077,2.5134,147.21,147.19,0.8410199]
[1718295840501,2.5135,147.2,147.19,0.8410199]
[1718295841807,5.0265,147.22,147.19,0.8410199]
[1718295842019,2.5134,147.21,147.19,0.8410199]
[1718295842382,2.5135,147.2,147.19,0.8410199]
[1718295842590,7.5406,147.2,147.19,0.8410199]
[1718295842791,2.5135,147.2,147.19,0.8410199]
[1718295842995,45.4756,147.2,147.19,0.8410199]
[1718295843210,45.8156,147.2,147.19,0.8410199]
[1718295843882,90.8156,147.2,147.19,0.8410199]
[1718295844785,45.8156,147.2,147.19,0.8410199]
[1718295845105,45.3056,147.2,147.19,0.8410199]
[1718295845304,37.7649,147.2,147.19,0.8410199]
[1718295846005,37.9349,147.2,147.19,0.8410199]
[1718295846181,90.8156,147.2,147.19,0.8410199]
[1718295847278,90.8156,147.2,147.19,1.99e-05]
[1718295849983,116.4256,147.2,147.19,1.99e-05]
[1718295851607,38.2749,147.2,147.19,1.99e-05]
[1718295851794,45.8156,147.2,147.19,1.99e-05]
[1718295852892,90.8156,147.2,147.19,1.99e-05]
[1718295853319,97.89558551,147.2,147.19,1.99e-05]
[1718295853819,90.8156,147.2,147.19,1.99e-05]
[1718295857216,37.5949,147.2,147.19,1.99e-05]
[1718295857419,2.5135,147.2,147.19,1.99e-05]
[1718295857596,33.6756,147.2,147.19,1.99e-05]
[1718295858230,133.6756,147.2,147.19,1.99e-05]
[1718295858426,2.5146,147.14,147.1,24.8052]
[1718295858598,8.54,147.13,147.1,24.8052]
[1718295858800,8.54,147.13,147.1,22.29]
[1718295859243,8.54,147.13,147.1,24.8052]
[1718295859398,8.54,147.11,147.1,22.29]
[1718295859717,2.5147,147.14,147.1,22.29]
[1718295859898,8.54,147.12,147.1,22.29]
[1718295861396,5.028,147.18,147.1,22.29]
[1718295861594,2.5145,147.15,147.1,24.8051]
[1718295861819,25.0282,147.17,147.1,24.8051]
[1718295861820,8.54,147.14,147.1,24.8051]
[1718295862036,8.54,147.14,147.11,2.515]
[1718295862326,8.54,147.14,147.1,24.8052]
[1718295862526,8.54,147.14,147.11,2.5151]
[1718295862706,8.54,147.15,147.12,2.5149]
[1718295862910,2.5138,147.19,147.13,5.0295]
[1718295863233,8.54,147.19,147.15,2.5143]
[1718295863739,5.0258,147.24,147.18,2.5138]
[1718295863913,8.54,147.22,147.18,2.5138]
[1718295864113,8.54,147.21,147.18,2.5138]
[1718295864425,8.54,147.2,147.16,6.3014]
[1718295864634,11.0536,147.2,147.16,8.8155]
[1718295864931,8.54,147.19,147.16,8.8155]
[1718295865126,11.0537,147.19,147.16,6.3014]
[1718295865331,8.54,147.17,147.14,15.4794]
[1718295865631,8.54,147.18,147.14,15.4794]
[1718295866138,2.5137,147.2,147.14,15.4794]
[1718295866139,2.5133,147.22,147.17,2.514]
[1718295866305,8.54,147.2,147.17,2.514]
[1718295867118,10.0497,147.27,147.17,10.0559]
[1718295867441,1238.3,147.33,147.15,0.17]
[1718295867442,2.5121,147.29,147.22,8.54]
[1718295867638,2.5119,147.3,147.25,2.5125]
[1718295867808,15.0683,147.33,147.26,2.5125]
[1718295867809,8.54,147.29,147.26,2.5125]
[1718295868012,8.54,147.29,147.23,8.54]
[1718295868212,11.052,147.29,147.24,2.5128]
[1718295868729,8.54,147.29,147.25,2.5127]
[1718295868942,11.052,147.29,147.24,2.5128]
[1718295869123,8.54,147.28,147.24,2.5128]
[1718295869509,2.5119,147.3,147.25,2.5127]
[1718295869824,55.6820515,147.35,147.27,2.5123]
[1718295870144,5.0224,147.34,147.27,2.5123]
[1718295870327,5.0224,147.34,147.28,15.1384]
[1718295870637,2.5117,147.31,147.28,15.1384]
[1718295873240,2.512,147.29,147.24,17.6522]
[1718295873426,12.5577,147.32,147.24,17.6522]
[1718295873427,2.5119,147.3,147.25,2.5127]
[1718295873626,2.5119,147.3,147.24,15.1395]
[1718295873627,22.5117,147.31,147.26,2.5125]
[1718295873814,2.5117,147.31,147.26,2.5125]
[1718295874017,2.5114,147.33,147.28,2.5121]
[1718295874553,2.5114,147.33,147.29,2.512]
[1718295874838,10.0428,147.37,147.27,5.0246]
[1718295874839,2.5112,147.34,147.27,5.0246]
[1718295875142,2.5113,147.33,147.29,2.5119]
[1718295875840,2.5117,147.31,147.25,13.0732]
[1718295876049,2.5117,147.31,147.27,2.5123]
[1718295876346,2.5119,147.3,147.25,2.5125]
[1718295876520,2.5116,147.32,147.27,2.5122]
[1718295876717,20.0,147.33,147.24,15.3095]
[1718295876917,2.5113,147.33,147.27,5.0247]
[1718295877223,2.5108,147.37,147.32,2.5114]
[1718295877935,2.5108,147.37,147.33,2.5113]
[1718295878715,10.0402,147.41,147.34,2.511]
[1718295878934,12.5508,147.4,147.33,2.5113]
[1718295879236,2.5107,147.37,147.32,2.5114]
[1718295879447,2.511,147.36,147.31,2.5116]
[1718295879834,2.5107,147.37,147.32,2.5115]
[1718295880229,2.5108,147.36,147.32,2.5115]
[1718295881052,5.0206,147.4,147.33,2.5113]
[1718295881262,2.5107,147.37,147.33,2.5113]
[1718295881543,12.5511,147.4,147.3,29.1159]
[1718295881544,25.0208,147.39,147.3,29.1158]
[1718295881751,2.5105,147.38,147.34,2.5111]
[1718295881925,2.5104,147.39,147.34,2.5111]
[1718295882119,27.5305,147.4,147.33,2.5112]
[1718295882457,2.5107,147.37,147.32,2.5114]
[1718295882624,2.5108,147.36,147.32,2.5114]
[1718295882824,2.5107,147.37,147.33,2.5113]
[1718295883028,2.5107,147.37,147.32,2.5114]
[1718295883227,2.5109,147.36,147.31,2.5116]
[1718295883445,2.5107,147.37,147.32,2.5115]
[1718295884534,2.5107,147.37,147.32,2.5114]
[1718295884735,2.5108,147.36,147.32,2.5114]
[1718295884945,10.0412,147.4,147.3,29.1158]
[1718295885146,5.0203,147.4,147.32,5.0229]
[1718295885448,2.5105,147.38,147.34,2.5111]
[1718295886030,25.0203,147.4,147.32,22.6032]
[1718295886333,2.5105,147.38,147.33,2.5112]
[1718295886750,20.0,147.4,147.31,0.51]
[1718295886926,2.5107,147.37,147.3,21.5803]
[1718295887243,2.5104,147.39,147.34,2.5111]
[1718295887441,2.5105,147.38,147.34,2.5111]
[1718295888264,22.5102,147.4,147.36,2.5107]
[1718295888446,2.5102,147.4,147.36,2.5107]
[1718295889171,2.5102,147.4,147.35,2.5109]
[1718295889333,2.5101,147.41,147.37,2.5106]
[1718295889544,2.5101,147.4,147.37,16.0177]
[1718295889861,2.5099,147.42,147.38,2.5104]
[1718295891759,12.5474,147.44,147.37,18.5282]
[1718295891957,2.51,147.41,147.37,18.5282]
[1718295893263,2.5097,147.43,147.39,2.5102]
[1718295894074,2.5098,147.42,147.38,8.645]
[1718295894365,2.51,147.41,147.38,6.1346]
[1718295896052,2.5102,147.4,147.37,16.0177]
[1718295896338,2.5101,147.41,147.37,18.5283]
[1718295896548,5.0197,147.42,147.37,16.0177]
[1718295896733,2.51,147.41,147.37,18.5283]
[1718295898842,2.5105,147.38,147.37,16.0177]
[1718295899035,10.0401,147.41,147.37,16.0177]
[1718295899036,2.5104,147.39,147.37,16.0177]